fUSD/lending_fUSD_20240714
["ID","MTS","AMOUNT","RATE_DAILY","PERIOD"]
[332142320,1720987844822,-1418.02,0.00013909,2]
[332142322,1720987844832,-500.0,0.00013909,2]
[332142324,1720987844842,-500.0,0.00013909,2]
[332142326,1720987844852,-2153.44,0.00013909,2]
[332142328,1720987844862,-1583.87,0.00013909,2]
[332142330,1720987844872,-709.87,0.00013909,2]
[332142333,1720987844885,-7866.69150624,0.00013912,3]
[332142335,1720987844897,-13290.2608268,0.00013912,3]
[332142337,1720987844907,-267.44,0.00013913,2]
[332142339,1720987844917,-500.0,0.00013913,2]
[332142341,1720987844927,-259.58,0.00013913,2]
[332142342,1720987844937,-214.2,0.00013913,2]
[332142343,1720987844947,-500.0,0.00013913,2]
[332142344,1720987844957,-500.0,0.00013913,2]
[332142345,1720987844967,-500.0,0.00013913,2]
[332142346,1720987844977,-500.0,0.00013913,2]
[332142347,1720987844987,-183.72,0.00013913,2]
[332142348,1720987844997,-341.5,0.00013913,2]
[332142349,1720987845008,-264.19,0.00013913,2]
[332142351,1720987845017,-222.96,0.00013913,2]
[332142353,1720987845028,-500.0,0.00013913,2]
[332142355,1720987845038,-511.45197111,0.00013913,2]
[332142357,1720987845048,-335.1,0.00013913,2]
[332142359,1720987845057,-500.0,0.00013913,2]
[332142361,1720987845066,-500.0,0.00013914,2]
[332142363,1720987845076,-500.0,0.00013914,2]
[332142365,1720987845085,-7866.69150624,0.0001392,3]
[332142367,1720987845095,-500.0,0.00013921,2]
[332142369,1720987845105,-500.0,0.00013921,2]
[332142371,1720987845115,-500.0,0.00013922,2]
[332142374,1720987845125,-500.0,0.00013922,2]
[332142376,1720987845136,-500.0,0.00013922,2]
[332142378,1720987845146,-500.0,0.00013922,2]
[332142380,1720987845156,-150.0,0.00013922,2]
[332142382,1720987845166,-500.0,0.00013922,2]
[332142384,1720987845176,-500.0,0.00013922,2]
[332142386,1720987845186,-500.0,0.00013922,2]
[332142388,1720987845197,-455.30874837,0.00013922,2]
[332142390,1720987845207,-500.0,0.00013922,2]
[332142392,1720987845216,-500.0,0.00013922,2]
[332142394,1720987845226,-500.0,0.00013922,2]
[332142396,1720987845237,-500.0,0.00013922,2]
[332142398,1720987845246,-756.69,0.00013922,2]
[332142402,1720987845256,-500.0,0.00013922,2]
[332142405,1720987845265,-500.0,0.00013922,2]
[332142408,1720987845275,-500.0,0.00013922,2]
[332142412,1720987845285,-500.0,0.00013922,2]
[332142414,1720987845294,-500.0,0.00013922,2]
[332142417,1720987845303,-500.0,0.00013922,2]
[332142420,1720987845312,-500.0,0.00013922,2]
[332142423,1720987845321,-500.0,0.00013922,2]
[332142426,1720987845331,-500.0,0.00013922,2]
[332142429,1720987845341,-500.0,0.00013922,2]
[332142431,1720987845350,-236.06778588,0.00013922,2]
[332142433,1720987845359,-500.0,0.00013922,2]
[332142435,1720987845368,-167.15,0.00013922,2]
[332142437,1720987845378,-500.0,0.00013922,2]
[332142439,1720987845387,-500.0,0.00013922,2]
[332142441,1720987845396,-1343.91,0.00013922,2]
[332142443,1720987845406,-500.0,0.00013922,2]
[332142445,1720987845415,-500.0,0.00013922,2]
[332142447,1720987845424,-500.0,0.00013922,2]
[332142449,1720987845434,-1000.0,0.0001393,2]
[332142451,1720987845444,-1000.0,0.0001393,2]
[332142453,1720987845455,-1000.0,0.0001393,2]
[332142455,1720987845464,-502.2906,0.0001393,2]
[332142457,1720987845474,-13290.2608268,0.00013944,3]
[332142459,1720987845485,-7866.69150624,0.00013948,3]
[332142461,1720987845496,-8995.03342135,0.00013951,3]
[332142464,1720987845512,-3597.56620416,0.00013951,3]
[332142467,1720987845528,-358.9537836,0.00013951,3]
[332142486,1720987845695,-338.70741769,0.00013951,3]
[332142489,1720987845706,-768.97518068,0.00013954,3]
[332142491,1720987845718,-500.87490691,0.00013954,3]
[332142493,1720987845731,-2035.54060394,0.00013954,3]
[332142496,1720987845743,-3020.41878,0.00013954,3]
[332142499,1720987845772,-600.0,0.00013954,3]
[332142502,1720987845784,-480.15000001,0.00013954,3]
[332142702,1720987847438,-328.00238978,0.000139,2]
[332142703,1720987847502,-253.43075151,0.000139,2]
[332142704,1720987847517,-1014.8698506,0.000139,2]
[332142705,1720987847528,-941.62099497,0.000139,2]
[332142706,1720987847540,-148.81203516,0.000139,2]
[332142707,1720987847551,-109.50757398,0.00013954,3]
[332142708,1720987847564,-351.22446072,0.00013954,3]
[332142709,1720987847573,-482.66693928,0.00013954,3]
[332142970,1720988018306,1500.0,0.00010759,2]
[332142971,1720988410073,456.48,0.0001061,2]
[332142972,1720988610059,11053.04435853,0.0001061,2]
[332142977,1720988759363,13570.69903123,6.94e-05,2]
[332142978,1720988791434,431.44595972,8.412e-05,2]
[332142980,1720988793745,13221.00655009,6.94e-05,2]
[332142982,1720988808343,6234.04642087,8.412e-05,2]
[332142983,1720988809555,13221.00655009,6.94e-05,2]
[332142984,1720988809984,1368.31980329,6.94e-05,2]
[332142991,1720988841572,155.0,6.94e-05,2]
[332142992,1720988844558,19647.48260334,8.412e-05,2]
[332142997,1720988858352,3624.54561359,8.412e-05,2]
[332143000,1720988883753,1559.38557531,8.412e-05,2]
[332143002,1720988885592,1786.42972449,0.0001,2]
[332143003,1720988887063,155.0,8.412e-05,2]
[332143004,1720988895653,19647.48260334,8.412e-05,2]
[332143007,1720988925359,210.39840478,0.0001,2]
[332143033,1720989013564,156.29070674,0.0001,2]
[332143047,1720989031723,-420.32699895,0.00010196,2]
[332143048,1720989031944,-110.53073903,0.00010196,2]
[332143049,1720989031954,-454.95,0.00010772,2]
[332143050,1720989031964,-150.0,0.00011,2]
[332143051,1720989031973,-300.0,0.00011097,2]
[332143052,1720989031983,-784.51926097,0.00011098,2]
[332143078,1720989037727,-2301.59091484,0.00011098,2]
[332143079,1720989037737,-576.77908516,0.00011098,2]
[332143080,1720989037782,-710.55115193,0.00011098,2]
[332143081,1720989037792,-305.02250471,0.00011098,2]
[332143082,1720989037843,-384.33546285,0.00011098,2]
[332143083,1720989037852,-294.13097611,0.00011098,2]
[332143084,1720989037866,-550.5276852,0.00011098,2]
[332143085,1720989037878,-130.3825148,0.00011098,2]
[332143086,1720989037892,-517.33562355,0.00011098,2]
[332143087,1720989037905,-1216.48344249,0.00011098,2]
[332143088,1720989037915,-483.68385979,0.00011098,2]
[332143089,1720989037926,-235.38273328,0.00011098,2]
[332143090,1720989037937,-218.16420677,0.00011098,2]
[332143091,1720989037947,-5391.8897417,0.00011098,2]
[332143092,1720989037958,-1905.46798759,0.00011098,2]
[332143093,1720989037968,-520.96253011,0.00011098,2]
[332143094,1720989037977,-1500.0,0.00011196,2]
[332143095,1720989037986,-8241.78384736,0.00011199,2]
[332143097,1720989039720,-15624.40942486,0.00011199,2]
[332143098,1720989039730,-208.77822868,0.00011199,2]
[332143099,1720989039739,-1072.27935291,0.00011199,2]
[332143100,1720989039749,-1890.82858828,0.00011199,2]
[332143101,1720989039759,-369.18293041,0.00012121,2]
[332143102,1720989039768,-245.0,0.00012121,2]
[332143103,1720989039778,-155.4020911,0.00012121,2]
[332143104,1720989039787,-159.9452446,0.00012121,2]
[332143105,1720989039798,-1011.37317944,0.00012121,2]
[332143106,1720989039809,-157.38764959,0.00012121,2]
[332143107,1720989039818,-357.41832375,0.00012121,2]
[332143108,1720989039828,-524.36809456,0.00012121,2]
[332143109,1720989039838,-420.0,0.00012193,2]
[332143110,1720989039847,-200.8,0.00012464,2]
[332143111,1720989039857,-186.7,0.00012582,2]
[332143112,1720989039867,-3433.89189092,0.00012633,2]
[332143113,1720989039882,-466.51281727,0.00012633,2]
[332143114,1720989039893,-1594.4435325,0.00012633,2]
[332143115,1720989039950,-928.24697091,0.00012633,2]
[332143116,1720989040011,-781.93320104,0.00012633,2]
[332143117,1720989040022,-9336.32010216,0.00012633,2]
[332143118,1720989040034,-1380.7714852,0.00012633,2]
[332143119,1720989040044,-205.31,0.00012676,2]
[332143120,1720989040054,-1742.55,0.00012676,2]
[332143121,1720989040064,-250.0,0.00012689,2]
[332143122,1720989040074,-542.65678969,0.0001269,2]
[332143123,1720989040095,-457.34321031,0.0001269,2]
[332143124,1720989040104,-250.0,0.0001272,2]
[332143125,1720989040114,-167.3,0.00012769,2]
[332143126,1720989040124,-213.8,0.00012936,2]
[332143127,1720989040133,-454.95,0.00013036,2]
[332143128,1720989040143,-368.85402183,0.00013041,2]
[332143129,1720989040153,-162.856364,0.00013227,2]
[332143130,1720989040162,-157.503432,0.00013227,2]
[332143131,1720989040171,-587.0,0.00013398,2]
[332143132,1720989040182,-218.18,0.00013699,2]
[332143133,1720989040191,-2500.0,0.00013712,2]
[332143134,1720989040201,-1500.0,0.00013719,2]
[332143135,1720989040210,-150.0,0.00013737,2]
[332143136,1720989040219,-150.0,0.00013737,2]
[332143137,1720989040228,-150.0,0.00013738,2]
[332143138,1720989040239,-150.0,0.00013739,2]
[332143139,1720989040249,-150.0,0.00013756,2]
[332143141,1720989040259,-1500.0,0.00013756,2]
[332143143,1720989040268,-1500.0,0.00013756,2]
[332143145,1720989040278,-500.0,0.00013757,2]
[332143147,1720989040287,-166.0340403,0.00013757,2]
[332143149,1720989040296,-500.0,0.00013757,2]
[332143151,1720989040305,-500.0,0.00013757,2]
[332143153,1720989040316,-517.23,0.00013757,2]
[332143155,1720989040326,-500.0,0.00013757,2]
[332143157,1720989040335,-500.0,0.00013757,2]
[332143159,1720989040345,-500.0,0.00013757,2]
[332143161,1720989040354,-500.0,0.00013757,2]
[332143163,1720989040364,-500.0,0.00013757,2]
[332143165,1720989040375,-500.0,0.00013757,2]
[332143167,1720989040387,-500.0,0.00013757,2]
[332143169,1720989040397,-500.0,0.00013757,2]
[332143171,1720989040407,-500.0,0.00013757,2]
[332143173,1720989040416,-500.0,0.00013757,2]
[332143175,1720989040427,-500.0,0.00013757,2]
[332143177,1720989040437,-500.0,0.00013757,2]
[332143179,1720989040446,-500.0,0.00013757,2]
[332143181,1720989040458,-500.0,0.00013757,2]
[332143183,1720989040468,-500.0,0.00013757,2]
[332143185,1720989040477,-500.0,0.00013757,2]
[332143188,1720989040489,-500.0,0.00013757,2]
[332143208,1720989040674,-500.0,0.00013757,2]
[332143210,1720989040685,-612.25,0.00013757,2]
[332143212,1720989040694,-560.63,0.00013757,2]
[332143214,1720989040704,-500.0,0.00013757,2]
[332143216,1720989040714,-500.0,0.00013757,2]
[332143218,1720989040723,-500.0,0.00013757,2]
[332143220,1720989040734,-500.0,0.00013757,2]
[332143222,1720989040744,-500.0,0.00013757,2]
[332143224,1720989040754,-500.0,0.00013758,2]
[332143226,1720989040763,-558.06,0.00013758,2]
[332143228,1720989040773,-500.0,0.00013758,2]
[332143230,1720989040783,-500.0,0.00013758,2]
[332143232,1720989040794,-500.0,0.00013758,2]
[332143234,1720989040804,-500.0,0.00013758,2]
[332143236,1720989040814,-535.96,0.00013758,2]
[332143238,1720989040823,-500.0,0.00013758,2]
[332143240,1720989040833,-500.0,0.00013758,2]
[332143242,1720989040842,-500.0,0.00013758,2]
[332143244,1720989040852,-500.0,0.00013758,2]
[332143246,1720989040862,-500.0,0.00013758,2]
[332143248,1720989040872,-500.0,0.00013758,2]
[332143250,1720989040881,-155.0,0.00013759,2]
[332143252,1720989040891,-150.0,0.00013766,2]
[332143254,1720989040901,-300.0,0.00013771,2]
[332143256,1720989040910,-150.0,0.00013771,2]
[332143258,1720989040920,-1500.0,0.0001378,2]
[332143260,1720989040929,-689.6443,0.00013781,2]
[332143262,1720989040939,-150.0,0.00013784,2]
[332143264,1720989040949,-150.64823718,0.00013787,2]
[332143266,1720989040959,-150.0,0.00013788,2]
[332143267,1720989040969,-150.0,0.00013794,2]
[332143268,1720989040978,-150.0,0.00013794,2]
[332143269,1720989040987,-150.0,0.00013795,2]
[332143270,1720989040996,-18938.71065523,0.00013797,2]
[332143271,1720989041007,-268.22943612,0.00013799,2]
[332143272,1720989041016,-268.22943612,0.00013799,2]
[332143273,1720989041026,-268.22943612,0.00013799,2]
[332143274,1720989041035,-268.22943612,0.00013799,2]
[332143275,1720989041044,-268.22943612,0.00013799,2]
[332143276,1720989041053,-150.0,0.000138,2]
[332143278,1720989041062,-156.0,0.00013802,2]
[332143280,1720989041071,-150.0,0.00013803,2]
[332143282,1720989041081,-268.22943612,0.00013811,2]
[332143284,1720989041090,-184.44,0.00013812,2]
[332143286,1720989041099,-500.0,0.00013812,2]
[332143288,1720989041109,-500.0,0.00013812,2]
[332143290,1720989041119,-500.0,0.00013812,2]
[332143292,1720989041128,-500.0,0.00013812,2]
[332143294,1720989041137,-176.07,0.00013812,2]
[332143296,1720989041146,-328.6,0.00013812,2]
[332143298,1720989041156,-253.18,0.00013812,2]
[332143300,1720989041165,-500.0,0.00013812,2]
[332143302,1720989041174,-79.03428684,0.00013812,2]
[332143304,1720989041187,-231.00571316,0.00013812,2]
[332143306,1720989041196,-321.14,0.00013812,2]
[332143308,1720989041206,-192.84,0.00013812,2]
[332143310,1720989041215,-500.0,0.00013812,2]
[332143312,1720989041224,-150.0,0.00013819,2]
[332143314,1720989041234,-231.38350399,0.00013819,2]
[332143316,1720989041243,-154.12627553,0.00013822,2]
[332143318,1720989041252,-229.50450732,0.00013833,2]
[332143321,1720989041264,-38.7249288,0.00013833,2]
[332143323,1720989041273,-150.0,0.0001384,2]
[332143325,1720989041283,-150.0,0.00013846,2]
[332143327,1720989041292,-873.23,0.00013846,3]
[332143329,1720989041301,-156.0,0.00013849,2]
[332143331,1720989041311,-268.22943612,0.00013856,2]
[332143333,1720989041320,-150.0,0.00013858,2]
[332143335,1720989041329,-150.0,0.00013863,2]
[332143337,1720989041338,-220.31,0.00013863,3]
[332143339,1720989041348,-500.0,0.00013867,2]
[332143341,1720989041357,-392.98927581,0.00013867,2]
[332143343,1720989041367,-500.0,0.00013867,2]
[332143345,1720989041379,-500.0,0.00013867,2]
[332143347,1720989041389,-500.0,0.00013867,2]
[332143349,1720989041399,-500.0,0.00013867,2]
[332143351,1720989041409,-173.9811603,0.00013869,2]
[332143353,1720989041419,-150.0,0.00013874,2]
[332143355,1720989041429,-268.22943612,0.00013878,2]
[332143357,1720989041439,-1500.0,0.00013881,2]
[332143359,1720989041448,-150.0,0.00013881,2]
[332143361,1720989041459,-300.0,0.00013885,2]
[332143363,1720989041469,-500.0,0.00013887,2]
[332143365,1720989041478,-162.856364,0.00013888,2]
[332143367,1720989041488,-500.0,0.00013888,2]
[332143369,1720989041497,-500.0,0.00013888,2]
[332143371,1720989041506,-1000.0,0.000139,2]
[332143372,1720989041516,-268.22943612,0.000139,2]
[332143374,1720989041525,-1915.0,0.000139,2]
[332143376,1720989041534,-1500.0,0.00013908,2]
[332143378,1720989041544,-150.0,0.0001391,2]
[332143380,1720989041553,-150.0,0.00013911,2]
[332143382,1720989041562,-169.16,0.00013915,2]
[332143384,1720989041571,-500.0,0.0001392,2]
[332143386,1720989041581,-550.26,0.0001392,2]
[332143388,1720989041590,-1261.6,0.0001392,2]
[332143390,1720989041600,-500.0,0.0001392,2]
[332143392,1720989041609,-602.83,0.0001392,2]
[332143394,1720989041618,-500.0,0.0001392,2]
[332143396,1720989041627,-1671.41,0.0001392,2]
[332143398,1720989041637,-500.0,0.0001392,2]
[332143400,1720989041646,-500.0,0.00013921,2]
[332143402,1720989041655,-500.0,0.00013921,2]
[332143404,1720989041664,-500.0,0.00013921,2]
[332143406,1720989041674,-500.0,0.00013921,2]
[332143408,1720989041683,-500.0,0.00013921,2]
[332143410,1720989041693,-500.0,0.00013921,2]
[332143413,1720989041703,-500.0,0.00013921,2]
[332143414,1720989041712,-500.0,0.00013921,2]
[332143416,1720989041721,-500.0,0.00013921,2]
[332143418,1720989041730,-150.0,0.00013921,2]
[332143420,1720989041739,-500.0,0.00013921,2]
[332143422,1720989041748,-500.0,0.00013921,2]
[332143424,1720989041758,-500.0,0.00013921,2]
[332143426,1720989041767,-599.78,0.00013921,2]
[332143428,1720989041777,-512.69,0.00013921,2]
[332143430,1720989041788,-500.0,0.00013921,2]
[332143432,1720989041797,-500.0,0.00013921,2]
[332143434,1720989041807,-500.0,0.00013921,2]
[332143437,1720989041817,-500.0,0.00013921,2]
[332143439,1720989041827,-500.0,0.00013921,2]
[332143441,1720989041837,-500.0,0.00013921,2]
[332143443,1720989041848,-500.0,0.00013921,2]
[332143445,1720989041858,-500.0,0.00013921,2]
[332143447,1720989041868,-500.0,0.00013921,2]
[332143449,1720989041878,-553.01,0.00013921,2]
[332143451,1720989041889,-500.0,0.00013921,2]
[332143453,1720989041899,-500.0,0.00013921,2]
[332143455,1720989041910,-500.0,0.00013921,2]
[332143457,1720989041919,-500.0,0.00013921,2]
[332143459,1720989041928,-500.0,0.00013921,2]
[332143461,1720989041937,-481.02863248,0.00013921,2]
[332143463,1720989041946,-500.0,0.00013921,2]
[332143465,1720989041955,-500.0,0.00013921,2]
[332143467,1720989041964,-551.44,0.00013921,2]
[332143469,1720989041973,-500.0,0.00013921,2]
[332143471,1720989041982,-500.0,0.00013921,2]
[332143473,1720989041991,-500.0,0.00013921,2]
[332143475,1720989042000,-524.06,0.00013921,2]
[332143477,1720989042009,-500.0,0.00013921,2]
[332143479,1720989042021,-544.42,0.00013921,2]
[332143481,1720989042031,-500.0,0.00013921,2]
[332143483,1720989042040,-500.0,0.00013921,2]
[332143485,1720989042051,-282.12726509,0.00013921,2]
[332143506,1720989042242,-217.87273491,0.00013921,2]
[332143508,1720989042251,-500.0,0.00013921,2]
[332143510,1720989042260,-500.0,0.00013921,2]
[332143512,1720989042270,-500.0,0.00013921,2]
[332143514,1720989042279,-500.0,0.00013921,2]
[332143516,1720989042288,-237.07000426,0.00013921,2]
[332143518,1720989042301,-262.92999574,0.00013921,2]
[332143520,1720989042311,-500.0,0.00013921,2]
[332143522,1720989042321,-500.0,0.00013921,2]
[332143524,1720989042330,-89.81328647,0.00013921,2]
[332143527,1720989042341,-410.18671353,0.00013921,2]
[332143529,1720989042351,-500.0,0.00013921,2]
[332143531,1720989042359,-270.0363192,0.00013921,2]
[332143582,1720989042821,-229.9636808,0.00013921,2]
[332143583,1720989042831,-500.0,0.00013921,2]
[332143584,1720989042842,-500.0,0.00013921,2]
[332143585,1720989042852,-500.0,0.00013921,2]
[332143586,1720989042861,-517.52108868,0.00013921,2]
[332143589,1720989042881,-59.42891132,0.00013921,2]
[332143591,1720989042891,-500.0,0.00013921,2]
[332143593,1720989042902,-500.0,0.00013921,2]
[332143596,1720989042915,-500.0,0.00013921,2]
[332143598,1720989042925,-320.32706466,0.00013921,2]
[332143906,1720989045728,-136.9110229,0.00013921,2]
[332143908,1720989045738,-500.0,0.00013921,2]
[332143910,1720989045748,-91.0804771,0.00013921,2]
[332143920,1720989045786,-408.9195229,0.00013921,2]
[332143923,1720989045796,-68.75038874,0.00013921,2]
[332144784,1720990232940,-451.75,0.00010276,2]
[332144787,1720990232950,-789.61914132,0.00011098,2]
[332144789,1720990232964,-210.46747941,0.00011098,2]
[332144790,1720990232973,-227.3638533,0.00011098,2]
[332144791,1720990232982,-480.74447726,0.00011098,2]
[332144792,1720990233137,-3007.09773346,0.00011098,2]
[332144793,1720990233147,-3029.1863234,0.00011098,2]
[332144794,1720990233155,-305.90837372,0.00011098,2]
[332144795,1720990233164,-4757.80756942,0.00011199,2]
[332144805,1720990238127,-9588.10597499,0.00011199,2]
[332144806,1720990238291,-298.93586434,0.00011199,2]
[332144967,1720990239949,-8641.75904001,0.00011199,2]
[332144969,1720990239958,-18246.67208275,0.00011199,2]
[332144971,1720990239969,-302.0,0.0001207,2]
[332144973,1720990239978,-800.0,0.00012153,2]
[332144975,1720990239988,-250.0,0.00012173,2]
[332144977,1720990239997,-500.0,0.0001219,2]
[332144979,1720990240007,-228.32,0.00012199,2]
[332144981,1720990240017,-206.0,0.0001231,2]
[332144983,1720990240026,-302.0,0.0001231,2]
[332144985,1720990240035,-200.0,0.0001237,2]
[332144987,1720990240045,-451.75,0.0001254,2]
[332144988,1720990240054,-206.0,0.0001255,2]
[332144990,1720990240064,-302.0,0.0001255,2]
[332144992,1720990240074,-206.0,0.0001278,2]
[332144994,1720990240084,-302.0,0.0001278,2]
[332144996,1720990240094,-2645.23,0.00012827,2]
[332144998,1720990240104,-2645.23,0.0001283,2]
[332145000,1720990240115,-2645.23,0.00012834,2]
[332145002,1720990240124,-2645.23,0.00012837,2]
[332145004,1720990240135,-2645.23,0.0001284,2]
[332145006,1720990240147,-2645.23,0.00012844,2]
[332145008,1720990240157,-2645.23,0.00012847,2]
[332145010,1720990240167,-2645.23,0.0001285,2]
[332145012,1720990240177,-2645.23,0.00012854,2]
[332145014,1720990240186,-2645.23,0.00012857,2]
[332145016,1720990240195,-2645.23,0.00012861,2]
[332145018,1720990240205,-2645.23,0.00012864,2]
[332145020,1720990240215,-2645.23,0.00012867,2]
[332145022,1720990240227,-2645.23,0.00012871,2]
[332145024,1720990240238,-2645.23,0.00012874,2]
[332145026,1720990240248,-2645.23,0.00012877,2]
[332145028,1720990240258,-2645.23,0.00012881,2]
[332145030,1720990240269,-2645.23,0.00012884,2]
[332145032,1720990240278,-2645.23,0.00012888,2]
[332145034,1720990240289,-2645.23,0.00012891,2]
[332145036,1720990240299,-1250.0,0.00013,2]
[332145038,1720990240308,-206.0,0.0001302,2]
[332145040,1720990240318,-302.0,0.0001302,2]
[332145042,1720990240328,-355.29,0.00013178,2]
[332145044,1720990240338,-273.286831,0.00013227,2]
[332145047,1720990240351,-183.608263,0.00013227,2]
[332145049,1720990240360,-162.629351,0.00013227,2]
[332145051,1720990240371,-206.0,0.0001326,2]
[332145053,1720990240380,-302.0,0.0001326,2]
[332145055,1720990240391,-47123.0,0.00013368,2]
[332145057,1720990240402,-206.0,0.000135,2]
[332145059,1720990240412,-302.0,0.000135,2]
[332145061,1720990240421,-155.43704552,0.00013516,2]
[332145063,1720990240432,-688.56520297,0.00013643,2]
[332145065,1720990240441,-800.0,0.00013672,2]
[332145067,1720990240451,-250.0,0.00013699,2]
[332145069,1720990240460,-219.05,0.00013699,2]
[332145071,1720990240470,-228.32,0.00013724,2]
[332145073,1720990240479,-150.0,0.00013727,2]
[332145075,1720990240488,-206.0,0.0001374,2]
[332145077,1720990240498,-302.0,0.0001374,2]
[332145079,1720990240508,-150.0,0.00013741,2]
[332145081,1720990240517,-150.0,0.00013756,2]
[332145083,1720990240526,-520.44202929,0.00013759,2]
[332145085,1720990240535,-12825.4324,0.00013767,2]
[332145087,1720990240545,-150.0,0.00013777,2]
[332145089,1720990240554,-150.0,0.0001378,2]
[332145091,1720990240563,-150.0,0.00013781,2]
[332145093,1720990240571,-500.0,0.00013789,2]
[332145094,1720990240580,-500.0,0.00013789,2]
[332145096,1720990240589,-500.0,0.00013789,2]
[332145098,1720990240599,-500.0,0.00013789,2]
[332145100,1720990240608,-500.0,0.00013789,2]
[332145102,1720990240617,-500.0,0.00013789,2]
[332145104,1720990240627,-500.0,0.00013789,2]
[332145106,1720990240636,-458.66079249,0.00013789,2]
[332145108,1720990240645,-500.0,0.00013789,2]
[332145110,1720990240654,-500.0,0.00013789,2]
[332145112,1720990240663,-500.0,0.00013789,2]
[332145114,1720990240672,-500.0,0.00013789,2]
[332145116,1720990240682,-500.0,0.00013789,2]
[332145118,1720990240691,-500.0,0.00013789,2]
[332145120,1720990240700,-500.0,0.00013789,2]
[332145122,1720990240709,-500.0,0.00013789,2]
[332145124,1720990240718,-500.0,0.00013789,2]
[332145145,1720990240727,-500.0,0.00013789,2]
[332145147,1720990240930,-500.0,0.00013789,2]
[332145150,1720990240940,-500.0,0.00013789,2]
[332145152,1720990240950,-500.0,0.00013789,2]
[332145154,1720990240960,-500.0,0.00013789,2]
[332145155,1720990240970,-500.0,0.00013789,2]
[332145158,1720990240981,-500.0,0.00013789,2]
[332145159,1720990240990,-252.86063287,0.00013789,2]
[332145161,1720990241000,-285.32053579,0.00013789,2]
[332145163,1720990241009,-500.0,0.00013789,2]
[332145165,1720990241018,-155.81861335,0.00013789,2]
[332145167,1720990241027,-500.0,0.00013789,2]
[332145169,1720990241037,-500.0,0.00013789,2]
[332145171,1720990241046,-500.0,0.00013789,2]
[332145173,1720990241055,-500.0,0.00013789,2]
[332145175,1720990241065,-500.0,0.00013789,2]
[332145177,1720990241074,-500.0,0.00013789,2]
[332145179,1720990241083,-500.0,0.00013789,2]
[332145181,1720990241093,-500.0,0.00013789,2]
[332145183,1720990241103,-500.0,0.00013789,2]
[332145185,1720990241113,-500.0,0.00013789,2]
[332145187,1720990241122,-500.0,0.00013789,2]
[332145189,1720990241131,-500.0,0.00013789,2]
[332145191,1720990241141,-500.0,0.00013789,2]
[332145193,1720990241150,-500.0,0.00013789,2]
[332145195,1720990241159,-500.0,0.00013789,2]
[332145197,1720990241168,-500.0,0.00013789,2]
[332145199,1720990241177,-500.0,0.00013789,2]
[332145201,1720990241187,-500.0,0.00013789,2]
[332145203,1720990241197,-500.0,0.00013789,2]
[332145205,1720990241208,-500.0,0.00013789,2]
[332145206,1720990241218,-500.0,0.00013789,2]
[332145207,1720990241230,-500.0,0.00013789,2]
[332145208,1720990241239,-500.0,0.00013789,2]
[332145209,1720990241249,-500.0,0.00013789,2]
[332145210,1720990241261,-500.0,0.00013789,2]
[332145211,1720990241270,-500.0,0.00013789,2]
[332145212,1720990241279,-500.0,0.00013789,2]
[332145214,1720990241291,-500.0,0.00013789,2]
[332145216,1720990241301,-500.0,0.00013789,2]
[332145218,1720990241311,-500.0,0.00013789,2]
[332145220,1720990241322,-500.0,0.00013789,2]